fUST/lending_fUST_20250302
["ID","MTS","AMOUNT","RATE_DAILY","PERIOD"]
[355010772,1740865852263,-1104.480692,0.00025205,7]
[355010773,1740865852272,-749.64,0.00025205,2]
[355010774,1740865852282,-793.99,0.00025205,2]
[355010775,1740865852292,-500.0,0.00025205,2]
[355010776,1740865852303,-1104.480692,0.00025205,7]
[355010777,1740865852313,-1104.480692,0.00025205,7]
[355010778,1740865852323,-500.0,0.00025205,2]
[355010779,1740865852332,-992.45,0.00025205,2]
[355010780,1740865852342,-612.24,0.00025205,2]
[355010781,1740865852351,-1220.97,0.00025205,2]
[355010782,1740865852361,-500.0,0.00025205,2]
[355010783,1740865852371,-6263.62,0.00025205,2]
[355010784,1740865852380,-500.0,0.00025205,2]
[355010785,1740865852390,-1332.97,0.00025205,2]
[355010786,1740865852399,-500.0,0.00025205,2]
[355010787,1740865852409,-500.0,0.00025205,2]
[355010788,1740865852419,-151.0,0.00025205,7]
[355010789,1740865852429,-29909.84,0.00025205,2]
[355010790,1740865852438,-151.0,0.00025205,7]
[355010791,1740865852448,-188.49445,0.00025205,7]
[355010792,1740865852457,-188.49445,0.00025205,7]
[355010793,1740865852467,-2844.36,0.00025205,2]
[355010794,1740865852476,-151.0,0.00025205,7]
[355010795,1740865852485,-151.0,0.00025205,7]
[355010796,1740865852495,-500.0,0.00025205,2]
[355010797,1740865852504,-500.0,0.00025205,2]
[355010798,1740865852514,-581.49533621,0.00025205,2]
[355010799,1740865852524,-766.2,0.00025205,2]
[355010800,1740865852534,-188.49445,0.00025205,7]
[355010801,1740865852544,-188.49445,0.00025205,7]
[355010802,1740865852557,-1338.98,0.00025205,2]
[355010803,1740865852567,-500.0,0.00025205,2]
[355010804,1740865852576,-13654.62,0.00025205,2]
[355010805,1740865852586,-500.0,0.00025205,2]
[355010806,1740865852595,-500.0,0.00025205,2]
[355010807,1740865852606,-1174.39,0.00025205,2]
[355010808,1740865852615,-1000.0,0.00025205,5]
[355010809,1740865852625,-2866.9,0.00025205,2]
[355010810,1740865852635,-3050.65,0.00025205,2]
[355010811,1740865852645,-2057.02,0.00025205,2]
[355010812,1740865852654,-938.36,0.00025205,2]
[355010813,1740865852663,-1450.21,0.00025205,2]
[355010814,1740865852673,-5637.78,0.00025205,2]
[355010815,1740865852682,-151.0,0.00025205,7]
[355010816,1740865852692,-151.0,0.00025205,7]
[355010817,1740865852701,-366.736935,0.00025205,7]
[355010818,1740865852711,-366.736935,0.00025205,7]
[355010819,1740865852721,-858.8,0.00025205,2]
[355010820,1740865852730,-1441.91,0.00025205,2]
[355010821,1740865852740,-366.736935,0.00025205,7]
[355010822,1740865852749,-151.0,0.00025205,7]
[355010823,1740865852758,-366.736935,0.00025205,7]
[355010824,1740865852768,-151.0,0.00025205,7]
[355010825,1740865852777,-500.0,0.00025205,2]
[355010826,1740865852787,-546.41,0.00025205,2]
[355010827,1740865852797,-9348.65,0.00025205,2]
[355010828,1740865852806,-500.0,0.00025205,2]
[355010829,1740865852815,-752.72,0.00025205,2]
[355010830,1740865852824,-500.0,0.00025205,2]
[355010831,1740865852833,-160.336105,0.00025205,7]
[355010832,1740865852843,-160.336105,0.00025205,7]
[355010833,1740865852852,-500.0,0.00025205,2]
[355010834,1740865852861,-973.28,0.00025205,2]
[355010835,1740865852871,-160.336105,0.00025205,7]
[355010836,1740865852880,-160.336105,0.00025205,7]
[355010837,1740865852889,-540.686546,0.00025205,7]
[355010838,1740865852899,-540.686546,0.00025205,7]
[355010839,1740865852908,-500.0,0.00025205,2]
[355010840,1740865852918,-540.686546,0.00025205,7]
[355010841,1740865852927,-540.686546,0.00025205,7]
[355010842,1740865852936,-500.0,0.00025205,2]
[355010843,1740865852946,-500.0,0.00025205,2]
[355010844,1740865852955,-1190.61,0.00025205,2]
[355010845,1740865852964,-500.0,0.00025205,2]
[355010846,1740865852974,-2980.87,0.00025205,2]
[355010847,1740865852996,-500.0,0.00025205,2]
[355010848,1740865853007,-500.0,0.00025205,2]
[355010849,1740865853017,-500.0,0.00025205,2]
[355010850,1740865853028,-500.0,0.00025205,2]
[355010851,1740865853037,-539.63,0.00025205,2]
[355010852,1740865853048,-1014.87,0.00025205,2]
[355010853,1740865853058,-500.0,0.00025205,2]
[355010854,1740865853067,-500.0,0.00025205,2]
[355010855,1740865853076,-1765.74,0.00025205,2]
[355010856,1740865853086,-3437.15,0.00025205,2]
[355010857,1740865853096,-500.0,0.00025205,2]
[355010858,1740865853105,-500.0,0.00025205,2]
[355010859,1740865853115,-500.0,0.00025205,2]
[355010860,1740865853124,-500.0,0.00025205,2]
[355010861,1740865853134,-604.33,0.00025205,2]
[355010862,1740865853144,-525.99902752,0.00025205,2]
[355010863,1740865853153,-1857.9,0.00025205,2]
[355010864,1740865853163,-1367.29,0.00025205,2]
[355010865,1740865853173,-785.26,0.00025205,2]
[355010866,1740865853182,-500.0,0.00025205,2]
[355010867,1740865853192,-200.0,0.0002537,16]
[355010868,1740865853202,-1730.47166692,0.000254,4]
[355010869,1740865853211,-800.0,0.00025456,2]
[355010870,1740865853221,-6666.66666667,0.00025467,2]
[355010871,1740865853231,-500.0,0.00025473,2]
[355010872,1740865853240,-309.31848964,0.00025478,2]
[355010873,1740865853250,-151.0,0.00025478,2]
[355010874,1740865853260,-160.0,0.00025478,2]
[355010875,1740865853270,-151.0,0.00025479,7]
[355010876,1740865853279,-151.0,0.00025479,7]
[355010877,1740865853289,-151.0,0.00025479,7]
[355010878,1740865853298,-151.0,0.00025479,7]
[355010879,1740865853309,-151.0,0.00025479,7]
[355010880,1740865853320,-503.21789531,0.00025479,2]
[355010881,1740865853329,-500.0,0.00025479,2]
[355010882,1740865853339,-716.74,0.00025479,2]
[355010883,1740865853349,-151.0,0.00025479,7]
[355010884,1740865853359,-500.0,0.00025479,2]
[355010885,1740865853370,-304.570815,0.00025479,7]
[355010886,1740865853379,-500.0,0.00025479,2]
[355010887,1740865853390,-500.0,0.00025479,2]
[355010888,1740865853399,-500.0,0.00025479,2]
[355010889,1740865853409,-611.89,0.00025479,2]
[355010890,1740865853418,-902.31,0.00025479,2]
[355010891,1740865853428,-500.0,0.00025479,2]
[355010892,1740865853438,-151.0,0.00025479,7]
[355010893,1740865853448,-283.357148,0.00025479,7]
[355010894,1740865853458,-202.89545868,0.00025479,2]
[355010895,1740865853468,-151.0,0.00025479,7]
[355010896,1740865853477,-151.0,0.00025479,7]
[355010897,1740865853487,-151.0,0.00025479,7]
[355010898,1740865853497,-151.0,0.00025479,7]
[355010899,1740865853507,-500.0,0.00025479,2]
[355010900,1740865853516,-500.0,0.00025479,2]
[355010901,1740865853526,-500.0,0.00025479,2]
[355010902,1740865853535,-572.07,0.00025479,2]
[355010903,1740865853545,-500.0,0.00025479,2]
[355010904,1740865853558,-1069.98,0.00025479,2]
[355010905,1740865853568,-500.0,0.00025479,2]
[355010906,1740865853578,-447.85195438,0.00025479,2]
[355010907,1740865853587,-500.0,0.00025479,2]
[355010908,1740865853602,-233.889723,0.00025479,7]
[355010909,1740865853613,-761.98,0.00025479,2]
[355010910,1740865853622,-500.0,0.00025479,2]
[355010911,1740865853632,-500.0,0.00025479,2]
[355010912,1740865853642,-616.95,0.00025479,2]
[355010913,1740865853652,-500.0,0.00025479,2]
[355010914,1740865853663,-500.0,0.00025479,2]
[355010915,1740865853674,-500.0,0.00025479,2]
[355010916,1740865853684,-793.31,0.00025479,2]
[355010917,1740865853695,-500.0,0.00025479,2]
[355010918,1740865853705,-633.80182,0.00025479,7]
[355010919,1740865853717,-500.0,0.00025479,2]
[355010920,1740865853728,-633.80182,0.00025479,7]
[355010921,1740865853738,-633.80182,0.00025479,7]
[355010922,1740865853749,-633.80182,0.00025479,7]
[355010923,1740865853760,-1040.31,0.00025479,2]
[355010924,1740865853771,-151.0,0.00025479,7]
[355010925,1740865853781,-151.0,0.00025479,7]
[355010926,1740865853792,-500.0,0.00025479,2]
[355010927,1740865853802,-343.454498,0.00025479,7]
[355010928,1740865853812,-343.454498,0.00025479,7]
[355010929,1740865853823,-343.454498,0.00025479,7]
[355010930,1740865853835,-343.454498,0.00025479,7]
[355010931,1740865853846,-500.0,0.00025479,2]
[355010932,1740865853857,-1041.91,0.00025479,2]
[355010933,1740865853868,-759.41,0.00025479,2]
[355010934,1740865853879,-500.0,0.00025479,2]
[355010935,1740865853890,-151.0,0.00025479,7]
[355010936,1740865853902,-669.86,0.00025479,2]
[355010937,1740865853913,-151.0,0.00025479,7]
[355010938,1740865853924,-998.27,0.00025479,2]
[355010939,1740865853935,-668.29,0.00025479,2]
[355010940,1740865853946,-981.47,0.00025479,2]
[355010941,1740865853957,-183.000529,0.00025479,7]
[355010942,1740865853967,-500.0,0.00025479,2]
[355010943,1740865853979,-183.000529,0.00025479,7]
[355010944,1740865853990,-500.0,0.00025479,2]
[355010945,1740865854000,-1497.06,0.00025479,2]
[355010946,1740865854011,-500.0,0.00025479,2]
[355010947,1740865854022,-500.0,0.00025479,2]
[355010948,1740865854033,-500.0,0.00025479,2]
[355010949,1740865854044,-500.0,0.00025479,2]
[355010950,1740865854055,-1297.68,0.00025479,2]
[355010951,1740865854065,-886.8,0.00025479,2]
[355010952,1740865854076,-671.34,0.00025479,2]
[355010953,1740865854086,-500.0,0.00025479,2]
[355010954,1740865854096,-500.0,0.00025479,2]
[355010955,1740865854107,-500.0,0.00025479,2]
[355010956,1740865854118,-653.48,0.00025479,2]
[355010957,1740865854128,-470.79069786,0.00025479,2]
[355010958,1740865854139,-500.0,0.00025479,2]
[355010959,1740865854150,-1032.83,0.00025479,2]
[355010960,1740865854161,-500.0,0.00025479,2]
[355010961,1740865854172,-500.0,0.00025479,2]
[355010962,1740865854182,-1537.98,0.00025479,2]
[355010963,1740865854193,-500.0,0.00025479,2]
[355010964,1740865854203,-1331.5,0.00025479,2]
[355010965,1740865854214,-500.0,0.00025479,2]
[355010966,1740865854224,-500.0,0.00025479,2]
[355010967,1740865854235,-500.0,0.00025479,2]
[355010968,1740865854246,-572.04,0.00025479,2]
[355010969,1740865854259,-500.0,0.00025479,2]
[355010970,1740865854269,-500.0,0.00025479,2]
[355010971,1740865854280,-723.69,0.00025479,2]
[355010972,1740865854290,-500.0,0.00025479,2]
[355010973,1740865854301,-500.0,0.00025479,2]
[355010974,1740865854311,-500.0,0.00025479,2]
[355010975,1740865854322,-500.0,0.00025479,2]
[355010976,1740865854333,-523.15,0.00025479,2]
[355010977,1740865854343,-1539.8,0.00025479,2]
[355010978,1740865854354,-1037.31,0.00025479,2]
[355010979,1740865854365,-500.0,0.00025479,2]
[355010980,1740865854376,-2368.87,0.00025479,2]
[355010981,1740865854387,-1909.25,0.00025479,2]
[355010982,1740865854398,-500.0,0.00025479,2]
[355010983,1740865854409,-500.0,0.00025479,2]
[355010984,1740865854420,-500.0,0.00025479,2]
[355010985,1740865854431,-500.0,0.00025479,2]
[355010986,1740865854442,-1079.21,0.00025479,2]
[355010987,1740865854453,-500.0,0.00025479,2]
[355010988,1740865854464,-938.62,0.00025479,2]
[355010989,1740865854474,-524.36321022,0.00025479,2]
[355010990,1740865854485,-1532.28,0.00025479,2]
[355010991,1740865854496,-533.24,0.00025479,2]
[355010992,1740865854506,-1643.94,0.00025479,2]
[355010993,1740865854517,-500.0,0.00025479,2]
[355010994,1740865854527,-500.0,0.00025479,2]
[355010995,1740865854538,-500.0,0.00025479,2]
[355010996,1740865854552,-500.0,0.00025479,2]
[355010997,1740865854563,-500.0,0.00025479,2]
[355010998,1740865854574,-1047.29,0.00025479,2]
[355010999,1740865854585,-151.0,0.00025479,7]
[355011000,1740865854595,-151.0,0.00025479,7]
[355011001,1740865854606,-500.0,0.00025479,2]
[355011002,1740865854617,-659.33,0.00025479,2]
[355011003,1740865854628,-500.0,0.00025479,2]
[355011004,1740865854638,-942.58,0.00025479,2]
[355011005,1740865854658,-848.54,0.00025479,2]
[355011006,1740865854672,-500.0,0.00025479,2]
[355011007,1740865854683,-1333.900915,0.00025479,5]
[355011008,1740865854694,-1333.900915,0.00025479,5]
[355011009,1740865854705,-1333.900915,0.00025479,5]
[355011010,1740865854715,-1333.900915,0.00025479,5]
[355011011,1740865854727,-176.23264533,0.00025479,2]
[355011012,1740865854738,-500.0,0.00025479,2]
[355011013,1740865854749,-280.884639,0.00025479,7]
[355011014,1740865854760,-1625.7,0.00025479,2]
[355011015,1740865854771,-280.884639,0.00025479,7]
[355011016,1740865854782,-2258.14,0.00025479,2]
[355011017,1740865854793,-520.02,0.00025479,2]
[355011018,1740865854804,-500.0,0.00025479,2]
[355011019,1740865854815,-325.49036446,0.00025479,2]
[355011020,1740865854826,-500.0,0.00025479,2]
[355011021,1740865854837,-500.0,0.00025479,2]
[355011022,1740865854849,-574.97,0.00025479,2]
[355011023,1740865854860,-590.48,0.00025479,2]
[355011024,1740865854871,-1142.55,0.00025479,2]
[355011025,1740865854882,-500.0,0.00025479,2]
[355011026,1740865854893,-151.0,0.00025479,7]
[355011027,1740865854903,-151.0,0.00025479,7]
[355011028,1740865854914,-151.0,0.00025479,7]
[355011029,1740865854924,-500.0,0.00025479,2]
[355011030,1740865854935,-151.0,0.00025479,7]
[355011031,1740865854946,-500.0,0.00025479,2]
[355011032,1740865854956,-500.0,0.00025479,2]
[355011033,1740865854967,-777.85,0.00025479,2]
[355011034,1740865854978,-994.07,0.00025479,2]
[355011035,1740865854989,-500.0,0.00025479,2]
[355011036,1740865854999,-500.0,0.00025479,2]
[355011037,1740865855010,-151.0,0.00025479,7]
[355011038,1740865855021,-151.0,0.00025479,7]
[355011039,1740865855032,-500.0,0.00025479,2]
[355011040,1740865855043,-500.0,0.00025479,2]
[355011041,1740865855054,-500.0,0.00025479,2]
[355011042,1740865855067,-675.53,0.00025479,2]
[355011043,1740865855078,-847.13,0.00025479,2]
[355011044,1740865855089,-500.0,0.00025479,2]
[355011045,1740865855099,-922.77,0.00025479,2]
[355011046,1740865855111,-541.587699,0.00025479,7]
[355011047,1740865855121,-541.587699,0.00025479,7]
[355011048,1740865855132,-890.33,0.00025479,2]
[355011049,1740865855142,-736.17,0.00025479,2]
[355011050,1740865855152,-659.61,0.00025479,2]
[355011051,1740865855163,-541.587699,0.00025479,7]
[355011052,1740865855173,-541.587699,0.00025479,7]
[355011053,1740865855184,-151.0,0.00025479,7]
[355011054,1740865855194,-178.555912,0.00025479,7]
[355011055,1740865855205,-1130.53,0.00025479,2]
[355011056,1740865855215,-500.0,0.00025479,2]
[355011057,1740865855226,-500.0,0.00025479,2]
[355011058,1740865855237,-500.0,0.00025479,2]
[355011059,1740865855247,-1550.64,0.00025479,2]
[355011060,1740865855258,-500.0,0.00025479,2]
[355011061,1740865855268,-518.15,0.00025479,2]
[355011062,1740865855279,-500.0,0.00025479,2]
[355011063,1740865855289,-563.74,0.00025479,2]
[355011064,1740865855302,-1430.17,0.00025479,2]
[355011065,1740865855316,-500.0,0.00025479,2]
[355011066,1740865855327,-500.0,0.00025479,2]
[355011067,1740865855337,-151.0,0.00025479,7]
[355011068,1740865855347,-151.0,0.00025479,7]
[355011069,1740865855359,-1881.27,0.00025479,2]
[355011070,1740865855369,-151.0,0.00025479,7]
[355011071,1740865855379,-151.0,0.00025479,7]
[355011072,1740865855389,-4236.82,0.00025479,2]
[355011073,1740865855399,-863.69,0.00025479,2]
[355011074,1740865855410,-679.89,0.00025479,2]
[355011075,1740865855420,-500.0,0.00025479,2]
[355011076,1740865855430,-1693.47,0.00025479,2]
[355011077,1740865855441,-500.0,0.00025479,2]
[355011078,1740865855451,-500.0,0.00025479,2]
[355011079,1740865855462,-500.0,0.00025479,2]
[355011080,1740865855472,-1358.57,0.00025479,2]
[355011081,1740865855483,-3797.89,0.00025479,2]
[355011082,1740865855493,-500.0,0.00025479,2]
[355011083,1740865855503,-626.03,0.00025479,2]
[355011084,1740865855514,-542.65117371,0.00025479,2]
[355011085,1740865855524,-177.307463,0.00025479,7]
[355011086,1740865855534,-177.307463,0.00025479,7]
[355011087,1740865855545,-519.85,0.00025479,2]
[355011088,1740865855558,-500.0,0.00025479,2]
[355011089,1740865855569,-172855.44,0.00025479,2]
[355011090,1740865855579,-500.0,0.00025479,2]
[355011091,1740865855590,-177.307463,0.00025479,7]
[355011092,1740865855600,-177.307463,0.00025479,7]
[355011093,1740865855610,-708.1,0.00025479,2]
[355011094,1740865855620,-1016.72,0.00025479,2]
[355011095,1740865855631,-163.023886,0.00025479,7]
[355011096,1740865855642,-163.023886,0.00025479,7]
[355011097,1740865855653,-163.023886,0.00025479,7]
[355011098,1740865855664,-163.023886,0.00025479,7]
[355011099,1740865855675,-548.03,0.00025479,2]
[355011100,1740865855685,-500.0,0.00025479,2]
[355011101,1740865855695,-835.93,0.00025479,2]
[355011102,1740865855706,-500.0,0.00025479,2]
[355011103,1740865855716,-3404.99,0.00025479,2]
[355011104,1740865855726,-500.0,0.00025479,2]
[355011105,1740865855736,-500.0,0.00025479,2]
[355011106,1740865855747,-500.0,0.00025479,2]
[355011107,1740865855758,-713.04,0.00025479,2]
[355011108,1740865855768,-1884.58,0.00025479,2]
[355011109,1740865855779,-151.0,0.00025479,7]
[355011110,1740865855789,-151.0,0.00025479,7]
[355011111,1740865855800,-1033.63,0.00025479,2]
[355011112,1740865855816,-557.01,0.00025479,2]
[355011113,1740865855826,-1211.77,0.00025479,2]
[355011114,1740865855837,-500.0,0.00025479,2]
[355011115,1740865855847,-2235.03,0.00025479,2]
[355011116,1740865855857,-3413.83,0.00025479,2]
[355011117,1740865855867,-910.58,0.00025479,2]
[355011118,1740865855878,-4306.34,0.00025479,2]
[355011119,1740865855888,-195.51698513,0.00025479,2]
[355011120,1740865855898,-1975.06,0.00025479,2]
[355011121,1740865855908,-764.64,0.00025479,2]
[355011122,1740865855918,-500.0,0.00025479,2]
[355011123,1740865855929,-993.45,0.00025479,2]
[355011124,1740865855939,-1332.32,0.00025479,2]
[355011125,1740865855950,-1827.1,0.00025479,2]
[355011126,1740865855960,-500.0,0.00025479,2]
[355011127,1740865855971,-500.0,0.00025479,2]
[355011128,1740865855982,-500.0,0.00025479,2]
[355011129,1740865855993,-500.0,0.00025479,2]
[355011130,1740865856005,-171.968109,0.00025479,7]
[355011131,1740865856294,-171.968109,0.00025479,7]
[355011132,1740865856307,-641.28,0.00025479,2]
[355011133,1740865856317,-697.14,0.00025479,2]
[355011134,1740865856327,-500.0,0.00025479,2]
[355011135,1740865856337,-171.968109,0.00025479,7]
[355011136,1740865856347,-171.968109,0.00025479,7]
[355011137,1740865856356,-500.0,0.00025479,2]
[355011138,1740865856366,-500.0,0.00025479,2]
[355011139,1740865856376,-719.29,0.00025479,2]
[355011140,1740865856385,-14467.93,0.00025479,2]
[355011141,1740865856395,-1028.98,0.00025479,2]
[355011142,1740865856405,-500.0,0.00025479,2]
[355011143,1740865856414,-500.0,0.00025479,2]
[355011144,1740865856423,-1316.85,0.00025479,2]
[355011145,1740865856433,-500.0,0.00025479,2]
[355011146,1740865856443,-1060.02,0.00025479,2]
[355011147,1740865856452,-500.0,0.00025479,2]
[355011148,1740865856462,-723.94,0.00025479,2]
[355011149,1740865856472,-1802.02,0.00025479,2]
[355011150,1740865856482,-500.0,0.00025479,2]
[355011151,1740865856491,-7079.6,0.00025479,2]
[355011152,1740865856501,-500.0,0.00025479,2]
[355011153,1740865856511,-500.0,0.00025479,2]
[355011154,1740865856520,-500.0,0.00025479,2]
[355011155,1740865856530,-717.71,0.00025479,2]
[355011156,1740865856540,-500.0,0.00025479,2]
[355011157,1740865856555,-500.0,0.00025479,2]
[355011158,1740865856564,-500.0,0.00025479,2]
[355011159,1740865856575,-4844.06,0.00025479,2]
[355011160,1740865856585,-897.19,0.00025479,2]
[355011161,1740865856595,-500.0,0.00025479,2]
[355011162,1740865856604,-500.0,0.00025479,2]
[355011163,1740865856614,-500.0,0.00025479,2]
[355011164,1740865856624,-286.90586524,0.00025479,2]
[355011165,1740865856634,-9915.36,0.00025479,2]
[355011166,1740865856644,-500.0,0.00025479,2]
[355011167,1740865856653,-1789.36,0.00025479,2]
[355011168,1740865856663,-1104.480692,0.00025479,7]
[355011169,1740865856672,-749.64,0.00025479,2]
[355011170,1740865856682,-1104.480692,0.00025479,7]
[355011171,1740865856692,-793.99,0.00025479,2]
[355011172,1740865856702,-500.0,0.00025479,2]
[355011173,1740865856711,-1104.480692,0.00025479,7]
[355011174,1740865856721,-1104.480692,0.00025479,7]
[355011175,1740865856731,-500.0,0.00025479,2]
[355011176,1740865856741,-992.45,0.00025479,2]
[355011177,1740865856751,-612.24,0.00025479,2]
[355011178,1740865856760,-1220.97,0.00025479,2]
[355011179,1740865856770,-500.0,0.00025479,2]
[355011180,1740865856780,-500.0,0.00025479,2]
[355011181,1740865856789,-6263.62,0.00025479,2]
[355011182,1740865856799,-1332.97,0.00025479,2]
[355011183,1740865856809,-500.0,0.00025479,2]
[355011184,1740865856819,-500.0,0.00025479,2]
[355011185,1740865856829,-151.0,0.00025479,7]
[355011186,1740865856839,-151.0,0.00025479,7]
[355011187,1740865856849,-29909.84,0.00025479,2]
[355011188,1740865856860,-188.49445,0.00025479,7]
[355011189,1740865856870,-188.49445,0.00025479,7]
[355011190,1740865856880,-2844.36,0.00025479,2]
[355011191,1740865856890,-500.0,0.00025479,2]
[355011192,1740865856900,-151.0,0.00025479,7]
[355011193,1740865856909,-190.154878,0.00025479,7]
[355011194,1740865856919,-220.55185853,0.00025479,2]
[355011195,1740865856928,-766.2,0.00025479,2]
[355011196,1740865856938,-188.49445,0.00025479,7]
[355011197,1740865856948,-188.49445,0.00025479,7]
[355011198,1740865856958,-1338.98,0.00025479,2]
[355011199,1740865856967,-13654.62,0.00025479,2]
[355011200,1740865856977,-500.0,0.00025479,2]
[355011201,1740865856987,-1174.39,0.00025479,2]
[355011202,1740865856997,-2866.9,0.00025479,2]
[355011203,1740865857006,-1000.0,0.00025479,5]
[355011204,1740865857016,-3050.65,0.00025479,2]
[355011205,1740865857025,-2057.02,0.00025479,2]
[355011206,1740865857035,-938.36,0.00025479,2]
[355011207,1740865857046,-1450.21,0.00025479,2]
[355011208,1740865857055,-5637.78,0.00025479,2]
[355011209,1740865857065,-366.736935,0.00025479,7]
[355011210,1740865857075,-151.0,0.00025479,7]
[355011211,1740865857084,-151.0,0.00025479,7]
[355011212,1740865857094,-366.736935,0.00025479,7]
[355011213,1740865857103,-858.8,0.00025479,2]
[355011214,1740865857112,-1441.91,0.00025479,2]
[355011215,1740865857122,-366.736935,0.00025479,7]
[355011216,1740865857131,-162.98802,0.00025479,7]
[355011217,1740865857141,-366.736935,0.00025479,7]
[355011218,1740865857150,-500.0,0.00025479,2]
[355011219,1740865857159,-546.41,0.00025479,2]
[355011220,1740865857169,-9348.65,0.00025479,2]
[355011221,1740865857178,-500.0,0.00025479,2]
[355011222,1740865857187,-752.72,0.00025479,2]
[355011223,1740865857198,-500.0,0.00025479,2]
[355011224,1740865857207,-160.336105,0.00025479,7]
[355011225,1740865857217,-160.336105,0.00025479,7]
[355011226,1740865857226,-973.28,0.00025479,2]
[355011227,1740865857236,-160.336105,0.00025479,7]
[355011228,1740865857245,-160.336105,0.00025479,7]
[355011229,1740865857256,-540.686546,0.00025479,7]
[355011230,1740865857265,-540.686546,0.00025479,7]
[355011231,1740865857274,-176.47289892,0.00025479,2]
[355011232,1740865857284,-540.686546,0.00025479,7]
[355011233,1740865857294,-540.686546,0.00025479,7]
[355011234,1740865857304,-500.0,0.00025479,2]
[355011235,1740865857314,-1190.61,0.00025479,2]
[355011236,1740865857324,-500.0,0.00025479,2]
[355011237,1740865857333,-2980.87,0.00025479,2]
[355011238,1740865857344,-500.0,0.00025479,2]
[355011239,1740865857353,-500.0,0.00025479,2]
[355011240,1740865857363,-500.0,0.00025479,2]
[355011241,1740865857373,-500.0,0.00025479,2]
[355011242,1740865857383,-539.63,0.00025479,2]
[355011243,1740865857393,-1014.87,0.00025479,2]
[355011244,1740865857403,-500.0,0.00025479,2]
[355011245,1740865857413,-500.0,0.00025479,2]
[355011246,1740865857423,-1765.74,0.00025479,2]
[355011247,1740865857434,-3437.15,0.00025479,2]
[355011248,1740865857443,-500.0,0.00025479,2]
[355011249,1740865857454,-500.0,0.00025479,2]
[355011250,1740865857464,-315.0,0.00025479,3]
[355011251,1740865857474,-500.0,0.00025479,2]
[355011252,1740865857484,-350.0,0.00025479,3]
[355011253,1740865857494,-500.0,0.00025479,2]
[355011254,1740865857504,-604.33,0.00025479,2]
[355011255,1740865857516,-1857.9,0.00025479,2]
[355011256,1740865857528,-785.26,0.00025479,2]
[355011257,1740865857538,-500.0,0.00025479,2]
[355011258,1740865857552,-220.38105167,0.00025479,2]
[355011259,1740865857568,-306.0,0.00025479,2]
[355011260,1740865857579,-1000.0,0.000255,2]
[355011261,1740865857589,-1012.38,0.00025511,3]
[355011262,1740865857598,-506.2,0.00025511,3]
[355011263,1740865857609,-220.38105167,0.00025589,2]
[355011264,1740865857620,-220.38105167,0.00025699,2]
[355011265,1740865857630,-280.884639,0.00025699,7]
[355011266,1740865857640,-280.884639,0.00025699,7]
[355011267,1740865857652,-19624.61182001,0.00025699,7]
[355011268,1740865857662,-151.0,0.000257,120]
[355011269,1740865857671,-150.0,0.000257,2]
[355011270,1740865857680,-624.0,0.000257,2]
[355011271,1740865857690,-302.0,0.00025738,2]